bitfinex/quotes_SOLUSD_20220302
["timestamp","ask_amount","ask_price","bid_price","bid_amount"]
[1646194750098,14.41,104.17,104.12,58.88615287]
[1646194750298,14.41,104.17,104.07,48.0276]
[1646194750299,112.50497691,104.17,104.07,14.411]
[1646194750700,116.34597691,104.17,104.07,14.411]
[1646194751304,116.34597691,104.17,104.08,46.03516007]
[1646194751536,116.34597691,104.17,104.09,0.87553163]
[1646194751701,116.34597691,104.17,104.1,50.35796124]
[1646194752602,19.99597691,104.17,104.1,50.35796124]
[1646194752802,14.41,104.17,104.1,50.35796124]
[1646194753402,116.741,104.18,104.1,50.35796124]
[1646194754003,116.741,104.18,104.1,64.76526124]
[1646194754204,112.9,104.18,104.1,64.76526124]
[1646194754703,112.9,104.18,104.1,70.49626124]
[1646194754908,112.9,104.18,104.1,178.38626124]
[1646194756205,3.84,104.21,104.1,178.38626124]
[1646194756408,3.84,104.21,104.11,0.67250146]
[1646194756604,3.84,104.21,104.14,14.4022]
[1646194756807,3.839,104.23,104.15,60.74028129]
[1646194757004,137.3594,104.24,104.15,67.29728129]
[1646194757205,138.6565388,104.24,104.15,67.29728129]
[1646194757504,137.3594,104.24,104.16,14.3992]
[1646194757705,112.9,104.24,104.17,47.93149425]
[1646194757905,116.738,104.24,104.17,47.38522069]
[1646194758306,116.738,104.24,104.18,0.57476413]
[1646194758505,116.738,104.24,104.17,47.38522069]
[1646194758706,98.4186364,104.23,104.17,47.38522069]
[1646194759307,99.7157752,104.23,104.17,47.38522069]
[1646194759506,99.7157752,104.23,104.14,14.4011]
[1646194759708,203.09376186,104.23,104.12,14.4039]
[1646194759908,1.2971388,104.21,104.12,14.4039]
[1646194760107,12.8371388,104.21,104.12,14.4039]
[1646194760306,14.85744879,104.21,104.12,14.4039]
[1646194760707,14.85744879,104.21,104.13,50.27038953]
[1646194760908,14.85744879,104.21,104.14,0.589542]
[1646194761107,29.26404879,104.21,104.13,50.27038953]
[1646194762109,29.26404879,104.21,104.14,0.8468889]
[1646194762310,29.26404879,104.21,104.15,57.87359868]
[1646194763512,29.26404879,104.21,104.16,0.73770974]
[1646194763712,29.26404879,104.21,104.17,45.6903798]
[1646194764121,125.61404879,104.21,104.17,45.6903798]
[1646194764312,29.26404879,104.21,104.12,14.4039]
[1646194764513,12.8371388,104.21,104.12,14.4039]
[1646194764915,16.6771388,104.21,104.12,14.4039]
[1646194765314,16.6771388,104.21,104.13,48.90979012]
[1646194765513,16.6771388,104.21,104.14,0.77769804]
[1646194765714,16.6771388,104.21,104.15,44.35089939]
[1646194765916,16.6771388,104.21,104.12,14.4039]
[1646194766416,113.0271388,104.21,104.12,14.4039]
[1646194766635,3.84,104.2,104.12,14.4039]
[1646194767033,3.84,104.2,104.14,0.69417178]
[1646194767433,5.1371388,104.2,104.14,0.69417178]
[1646194767633,5.1371388,104.2,104.16,0.7640666]
[1646194767834,5.1071388,104.2,104.17,44.39582854]
[1646194768034,0.36716083,104.19,104.17,44.39582854]
[1646194769241,1.2971388,104.22,104.18,0.22149493]
[1646194769437,3.838,104.21,104.18,0.22149493]
[1646194771236,0.36716083,104.2,104.18,0.22149493]
[1646194771435,0.36716083,104.2,104.18,0.87512745]
[1646194771639,0.36716083,104.2,104.19,48.11835173]
[1646194772137,3.838,104.21,104.19,48.11835173]
[1646194772336,1.2971388,104.22,104.19,48.11835173]
[1646194772737,1.2971388,104.22,104.2,0.47445774]
[1646194773036,1.2971388,104.22,104.19,48.11835173]
[1646194773937,1.2971388,104.22,104.2,0.21712391]
[1646194774138,1.2971388,104.23,104.2,0.21712391]
[1646194776039,1.2971388,104.23,104.21,0.61563959]
[1646194776239,114.1971388,104.24,104.22,48.39450612]
[1646194777440,0.0071388,104.24,104.23,0.21706142]
[1646194777643,183.2449409,104.3,104.23,0.21706142]
[1646194777841,115.52263682,104.32,104.23,0.21706142]
[1646194778044,2.62263682,104.33,104.24,0.66527971]
[1646194778241,3.835,104.34,104.25,44.03829269]
[1646194778442,6.45763682,104.34,104.26,0.66527971]
[1646194778643,117.19563682,104.34,104.26,0.66527971]
[1646194778844,96.35,104.32,104.22,11.54]
[1646194779043,3.836,104.31,104.21,23.1935]
[1646194779845,3.836,104.31,104.22,43.03976304]
[1646194780045,14.3925,104.3,104.23,0.72589795]
[1646194780247,3.836,104.29,104.24,56.77464469]
[1646194781445,3.836,104.29,104.25,0.49428455]
[1646194781644,3.836,104.29,104.24,56.77464469]
[1646194783346,14.3925,104.3,104.24,56.77464469]
[1646194783546,114.66113523,104.32,104.24,56.77464469]
[1646194783745,14.3898,104.32,104.24,56.77464469]
[1646194783946,6.45863682,104.34,104.24,56.77464469]
[1646194784147,3.836,104.34,104.24,56.77464469]
[1646194784547,49.0469,104.35,104.24,68.31464469]
[1646194785247,33.0308,104.36,104.24,68.31464469]
[1646194785448,28.0308,104.36,104.25,0.89012485]
[1646194785648,14.385,104.35,104.26,71.58456068]
[1646194787048,112.88703542,104.35,104.26,57.20026068]
[1646194787249,110.738,104.33,104.26,57.20026068]
[1646194787454,112.65072269,104.33,104.22,23.6785]
[1646194787650,98.12402172,104.31,104.2,5.0]
[1646194788250,167.32402172,104.31,104.2,5.0]
[1646194788452,1.67582197,104.28,104.21,55.95716656]
[1646194788653,11.54,104.29,104.21,55.95716656]
[1646194788852,13.21340437,104.29,104.21,55.95716656]
[1646194789750,109.56340437,104.29,104.23,44.39783271]
[1646194789960,14.3961,104.27,104.23,44.39783271]
[1646194790150,16.09764993,104.27,104.16,47.9834]
[1646194790551,16.09764993,104.27,104.16,62.0989]
[1646194791153,16.09764993,104.27,104.17,61.34904657]
[1646194791549,16.09764993,104.27,104.17,60.39252639]
[1646194792351,14.3961,104.27,104.17,60.39252639]
[1646194792564,14.3961,104.27,104.19,0.63089817]
[1646194792754,14.3961,104.27,104.18,14.3963]
[1646194793553,112.9,104.28,104.19,73.75942817]
[1646194793753,112.9,104.28,104.2,0.59471456]
[1646194793952,112.9,104.28,104.19,59.36442817]
[1646194794954,115.46529993,104.28,104.19,59.36442817]
[1646194795159,297.39191353,104.28,104.19,59.36442817]
[1646194795356,297.39191353,104.28,104.15,81.0369]
[1646194795357,155.96153228,104.25,104.06,201.86]
[1646194795555,3.84,104.24,104.09,74.3008]
[1646194795754,11.54,104.25,104.1,107.89]
[1646194795958,123.77040972,104.26,104.11,101.93640225]
[1646194796155,123.77040972,104.26,104.11,161.15880225]
[1646194796356,123.77040972,104.26,104.14,47.92990862]
[1646194796357,66.40683915,104.25,104.14,47.92990862]
[1646194797560,64.22115696,104.25,104.15,14.3996]
[1646194797763,64.22115696,104.25,104.16,20.07733355]
[1646194798459,52.00593915,104.25,104.17,0.65860785]
[1646194798661,3.84,104.26,104.18,47.92990862]
[1646194799060,3.84,104.26,104.18,144.27990862]
[1646194799259,112.9,104.28,104.18,144.27990862]
[1646194799260,112.9,104.28,104.18,146.82894865]
[1646194799461,112.9,104.28,104.2,97.18638862]
[1646194799662,112.9,104.28,104.21,20.07733355]
[1646194800464,112.9,104.28,104.21,15.78332299]
[1646194801060,112.9,104.28,104.21,30.17352299]
[1646194801662,0.36061577,104.27,104.21,30.17352299]
[1646194802261,112.9,104.28,104.21,30.17352299]
[1646194802661,96.35,104.26,104.21,30.17352299]
[1646194802964,96.35,104.26,104.17,24.9629]
[1646194802965,0.70899539,104.25,104.17,24.9629]
[1646194803161,107.89,104.24,104.08,23.0402]
[1646194803363,0.70899539,104.23,104.11,5.0]
[1646194803563,113.08624806,104.24,104.11,5.0]
[1646194803863,96.35,104.22,104.12,70.73474234]
[1646194804063,54.83501003,104.24,104.12,70.73474234]
[1646194804264,20.56585736,104.24,104.13,107.89]
[1646194804465,96.35,104.26,104.14,0.12941332]
[1646194804663,96.35,104.26,104.14,11.54]
[1646194804862,173.12020058,104.26,104.12,109.33314234]
[1646194805064,96.35,104.24,104.12,109.33314234]
[1646194805263,128.82641737,104.23,104.12,61.33264234]
[1646194805465,136.81329272,104.23,104.12,61.33264234]
[1646194805662,0.30360591,104.22,104.12,56.33264234]
[1646194806063,0.30360591,104.22,104.12,70.73654234]
[1646194806262,136.81329272,104.23,104.12,70.73654234]
[1646194806862,128.22529272,104.23,104.12,70.73654234]
[1646194807063,31.87529272,104.23,104.12,85.33974234]
[1646194807265,31.87529272,104.23,104.12,87.88878237]
[1646194808265,0.49845369,104.22,104.12,99.42878237]
[1646194808465,31.87529272,104.23,104.12,99.42878237]
[1646194808666,126.54600204,104.23,104.12,99.42878237]
[1646194808868,128.31156292,104.23,104.12,99.42878237]
[1646194809068,128.31156292,104.23,104.12,85.33974234]
[1646194809965,128.31156292,104.23,104.13,0.25053074]
[1646194810167,128.31156292,104.23,104.13,14.4028]
[1646194810368,128.31156292,104.23,104.14,7.38058927]
[1646194810569,0.3550124,104.22,104.14,7.38058927]
[1646194811067,0.3550124,104.22,104.14,21.78258927]
[1646194811266,128.31156292,104.23,104.14,21.78258927]
[1646194811866,96.35,104.22,104.14,21.78258927]
[1646194812874,59.16156865,104.21,104.14,21.78258927]
[1646194813067,0.59456357,104.2,104.14,21.78258927]
[1646194813669,59.16156865,104.21,104.14,21.78258927]
[1646194814171,0.52685097,104.2,104.14,21.78258927]
[1646194814571,0.52685097,104.2,104.14,16.28258927]
[1646194814771,59.16156865,104.21,104.14,16.28258927]
[1646194815171,59.16156865,104.21,104.14,1.88058927]
[1646194815392,0.73217169,104.2,104.14,1.88058927]
[1646194815595,28.97519974,104.19,104.14,1.88058927]
[1646194815993,0.25729872,104.18,104.08,5.0]
[1646194816394,1.70516655,104.18,104.08,19.173]
[1646194816591,40.51519974,104.19,104.08,19.173]
[1646194816592,0.27124159,104.17,104.08,19.173]
[1646194816792,0.27124159,104.17,104.08,14.4096]
[1646194816793,8.818,104.17,104.08,14.4096]
[1646194816994,8.818,104.17,104.09,53.96617398]
[1646194817693,0.59876097,104.16,104.09,53.96617398]
[1646194817894,98.31819937,104.18,104.09,53.96617398]
[1646194818298,1.96819937,104.18,104.09,68.37497398]
[1646194818496,53.60109123,104.19,104.1,0.25053074]
[1646194818695,3.84,104.2,104.1,0.25053074]
[1646194818896,6.02010765,104.21,104.11,2.54904003]
[1646194819096,2.11908095,104.22,104.11,2.54904003]
[1646194819294,15.38,104.23,104.12,14.404]
[1646194819498,319.53161123,104.24,104.13,4.24705763]
[1646194819696,3.839,104.23,104.13,6.79609766]
[1646194819897,211.16421123,104.24,104.13,6.79609766]
[1646194820298,199.62421123,104.24,104.13,6.79609766]
[1646194820903,214.02721123,104.24,104.14,14.4022]
[1646194821100,214.02721123,104.24,104.15,41.55476056]
[1646194821301,225.56721123,104.24,104.15,41.55476056]
[1646194821700,0.27079836,104.23,104.15,41.55476056]
[1646194821900,3.839,104.22,104.15,41.55476056]
[1646194822301,3.839,104.23,104.15,41.55476056]
[1646194822903,3.839,104.23,104.15,55.95516056]
[1646194823108,3.839,104.25,104.15,58.50420059]
[1646194823302,85.43838154,104.27,104.15,166.39420059]
[1646194823604,83.731,104.27,104.15,180.67026431]
[1646194823803,141.74037702,104.27,104.15,180.67026431]
[1646194824001,0.52926717,104.26,104.15,180.67026431]
[1646194824202,83.731,104.27,104.15,180.67026431]
[1646194824803,79.893,104.27,104.15,180.67026431]
[1646194825003,0.7135557,104.26,104.15,180.67026431]
[1646194825205,136.3049583,104.27,104.15,180.67026431]
[1646194826108,119.36063682,104.29,104.16,0.25053074]
[1646194826311,119.36063682,104.29,104.19,14.3919]
[1646194826510,116.738,104.29,104.19,14.3919]
[1646194826708,116.738,104.29,104.19,124.83094003]
[1646194827111,6.45963682,104.31,104.2,16.65847105]
[1646194827311,3.837,104.31,104.23,14.3893]
[1646194827610,3.836,104.32,104.23,14.3893]
[1646194827810,196.461,104.33,104.23,16.93834003]
[1646194828010,192.625,104.33,104.23,16.93834003]
[1646194828410,192.625,104.33,104.24,41.55476056]
[1646194828613,192.625,104.33,104.25,14.3861]
[1646194828811,40.47162704,104.32,104.26,16.65847105]
[1646194829412,112.9,104.33,104.26,16.65847105]
[1646194830415,0.58226671,104.32,104.26,16.65847105]
[1646194830818,112.9,104.33,104.26,16.65847105]
[1646194831118,112.9,104.33,104.26,31.04387105]
[1646194832017,298.52500084,104.37,104.26,31.04387105]
[1646194832517,303.52500084,104.37,104.26,31.04387105]
[1646194832717,281.61863905,104.37,104.26,31.04387105]
[1646194832919,153.1346759,104.36,104.26,33.59291108]
[1646194833517,153.1346759,104.36,104.26,31.04387105]
[1646194834118,3.834,104.35,104.26,31.04387105]
[1646194834319,31.35209249,104.34,104.26,31.04387105]
[1646194835520,0.29481296,104.33,104.26,31.04387105]
[1646194836224,0.29481296,104.33,104.27,0.25053074]
[1646194836422,3.835,104.36,104.27,0.25053074]
[1646194836626,3.835,104.36,104.27,14.3832]
[1646194836823,160.1266,104.37,104.27,16.93224003]
[1646194837424,216.1232682,104.37,104.28,41.55476056]
[1646194837832,0.33956368,104.36,104.28,41.55476056]
[1646194838422,216.1232682,104.37,104.28,41.55476056]
[1646194839023,216.1232682,104.37,104.29,14.3808]
[1646194839222,216.1232682,104.37,104.3,16.65847105]
[1646194839429,168.8966682,104.37,104.3,16.65847105]
[1646194840225,0.73217169,104.36,104.3,16.65847105]
[1646194841225,0.73217169,104.36,104.3,31.03827105]
[1646194841428,112.9,104.37,104.3,31.03827105]
[1646194844227,112.9,104.37,104.3,45.57877105]
[1646194844426,112.9,104.37,104.31,0.25053074]
[1646194844627,112.9,104.37,104.31,14.62813074]
[1646194844827,112.9,104.37,104.32,41.55476056]
[1646194845727,112.9,104.37,104.33,0.18959003]
[1646194845928,112.9,104.37,104.32,55.93176056]
[1646194847132,0.65895772,104.36,104.32,55.93176056]
[1646194847533,112.9,104.37,104.32,55.93176056]
[1646194847831,112.9,104.37,104.33,0.66143076]
[1646194848033,112.9,104.37,104.33,14.3757]
[1646194848634,112.9,104.37,104.34,15.99951333]
[1646194848835,112.9,104.37,104.35,1.15326297]
[1646194849057,112.9,104.37,104.36,41.55476056]
[1646194849254,46.082,104.4,104.36,41.55476056]
[1646194849458,116.733,104.41,104.37,0.48771233]
[1646194849654,116.733,104.41,104.36,41.55476056]
[1646194849655,3.831,104.43,104.36,41.55476056]
[1646194849856,112.9,104.45,104.36,49.54676056]
[1646194850058,3.831,104.46,104.36,159.98580059]
[1646194850254,59.63145531,104.48,104.36,207.87600059]
[1646194850456,3.831,104.48,104.36,207.87600059]
[1646194850657,112.9,104.49,104.37,0.80545078]
[1646194850857,112.9,104.49,104.39,96.35]
[1646194851056,112.9,104.49,104.42,14.3631]
[1646194851257,112.9,104.49,104.38,14.08904003]
[1646194851456,51.44119591,104.48,104.39,15.99951333]
[1646194853159,51.44119591,104.48,104.41,41.55476056]
[1646194853558,55.27019591,104.48,104.41,41.55476056]
[1646194854160,57.81923594,104.48,104.41,41.55476056]
[1646194855059,131.68344328,104.48,104.34,52.8993]
[1646194855261,165.12980507,104.48,104.34,47.8993]
[1646194855462,191.70892243,104.48,104.34,47.8993]
[1646194855662,189.87451509,104.48,104.34,47.8993]
[1646194855861,112.29271827,104.48,104.34,61.9122]
[1646194856062,67.79556088,104.48,104.36,96.35]
[1646194856264,67.79556088,104.48,104.38,14.3672]
[1646194856461,67.79556088,104.48,104.39,43.96014314]
[1646194856666,14.3698,104.48,104.39,140.31014314]
[1646194856864,116.731,104.49,104.39,140.31014314]
[1646194857062,112.9,104.49,104.39,46.50918317]
[1646194857268,112.9,104.49,104.39,154.39918317]
[1646194857463,112.9,104.49,104.41,14.3639]
[1646194857662,52.83517705,104.48,104.42,13.59413075]
[1646194857865,116.729,104.49,104.42,13.59413075]
[1646194858063,112.9,104.49,104.42,13.59413075]
[1646194858265,112.9,104.49,104.42,109.94413075]
[1646194858570,0.48079147,104.5,104.44,14.36]
[1646194858764,0.48079147,104.5,104.45,96.84565106]
[1646194858966,0.48079147,104.5,104.45,99.39469109]
[1646194859168,112.9,104.55,104.46,100.0]
[1646194859364,112.9,104.55,104.47,96.35]
[1646194859563,3.827,104.57,104.49,96.35]
[1646194859764,52.95171162,104.57,104.5,0.56168822]
[1646194859965,52.95171162,104.57,104.49,107.89]
[1646194860371,3.826,104.6,104.49,107.89]
[1646194860566,3.826,104.6,104.5,0.55487517]
[1646194860791,3.826,104.6,104.52,110.6993]
[1646194860965,3.826,104.6,104.52,14.3493]
[1646194861365,112.9,104.61,104.52,14.3493]
[1646194861768,112.9,104.61,104.52,20.6133]
[1646194862166,118.38469832,104.61,104.53,0.42573474]
[1646194862367,45.06711385,104.6,104.52,14.3493]
[1646194863369,45.06711385,104.6,104.5,28.43844003]
[1646194864271,45.06711385,104.6,104.51,0.89699134]
[1646194864669,45.06711385,104.6,104.5,14.3494]
[1646194865071,46.96632958,104.6,104.5,28.43844003]
[1646194865275,157.66722958,104.6,104.5,2.54904003]
[1646194865474,56.21450061,104.58,104.48,14.3521]
[1646194865872,48.13325651,104.56,104.48,14.3521]
[1646194866073,50.00422586,104.56,104.46,11.54]
[1646194866272,3.826,104.57,104.47,0.56507054]
[1646194866471,14.3548,104.57,104.47,14.91927054]
[1646194866774,16.00566769,104.57,104.47,14.3542]
[1646194867172,51.31085733,104.56,104.47,14.3542]
[1646194867372,53.3234868,104.56,104.45,50.84574003]
[1646194867975,149.6734868,104.56,104.45,50.84574003]
[1646194868175,166.57862683,104.56,104.45,34.0666]
[1646194868372,181.94562683,104.56,104.43,27.52214003]
[1646194869175,181.94562683,104.56,104.43,41.70884003]
[1646194869378,202.27774419,104.56,104.43,41.70884003]
[1646194869578,259.93774419,104.56,104.43,24.9731]
[1646194869778,279.85077265,104.56,104.41,113.61274003]
[1646194869976,279.85077265,104.56,104.41,5.0]
[1646194870176,57.66,104.51,104.39,22.6183]
[1646194870377,98.13990037,104.49,104.37,14.1465]
[1646194870576,59.51915324,104.48,104.37,14.1465]
[1646194871578,79.05115324,104.48,104.36,23.2496]
[1646194871885,60.77304637,104.46,104.37,14.3664]
[1646194872477,60.77304637,104.46,104.38,0.59325864]
[1646194872879,16.35096872,104.49,104.38,111.30935864]
[1646194873077,34.9221,104.5,104.38,16.91514003]
[1646194873277,25.24910936,104.5,104.38,28.45514003]
[1646194873880,47.31020285,104.49,104.38,28.45514003]
[1646194874479,49.01641891,104.49,104.38,28.45514003]
[1646194874779,49.01641891,104.49,104.39,0.5067554]
[1646194874976,49.01641891,104.49,104.39,14.3648]
[1646194875379,49.01641891,104.49,104.4,96.35]
[1646194875578,47.31020285,104.49,104.4,96.35]
[1646194875880,51.13920285,104.49,104.39,14.3648]
[1646194876080,65.50490285,104.49,104.39,14.3648]
[1646194876278,49.81341988,104.47,104.37,14.3672]
[1646194876477,49.81341988,104.47,104.36,37.7172]
[1646194877082,146.16341988,104.47,104.36,37.7172]
[1646194877279,3.83,104.46,104.36,37.7172]
[1646194877480,49.93314725,104.45,104.36,52.0866]
[1646194877678,3.83,104.46,104.36,28.837]
[1646194877882,3.83,104.46,104.36,125.187]
[1646194878079,117.9,104.48,104.36,125.187]
[1646194878280,5.0,104.48,104.39,0.47644088]
[1646194878481,5.0,104.48,104.39,11.54]
[1646194878682,51.02920947,104.48,104.39,11.44]
[1646194878880,37.7464,104.5,104.41,14.362]
[1646194879181,3.829,104.49,104.38,59.4134]
[1646194879983,56.86172763,104.48,104.39,14.3645]
[1646194880480,56.86172763,104.48,104.39,25.9045]
[1646194880986,3.829,104.49,104.39,25.9045]
[1646194881182,27.2111,104.5,104.4,0.44084584]
[1646194881384,27.2111,104.5,104.42,14.3606]
[1646194881583,23.3821,104.5,104.42,21.7156]
[1646194881984,83.1791724,104.51,104.43,0.77757974]
[1646194882185,83.1791724,104.51,104.42,33.2556]
[1646194882482,83.1791724,104.51,104.42,18.895]
[1646194882683,83.1791724,104.51,104.42,11.54]
[1646194882886,22.9986,104.51,104.42,107.89]
[1646194883183,22.9986,104.51,104.44,0.83002303]
[1646194883382,211.60330993,104.53,104.43,14.3599]
[1646194883783,96.7916,104.53,104.44,0.5323064]
[1646194883983,96.7916,104.53,104.44,96.8823064]
[1646194884183,96.7916,104.53,104.44,14.8899064]
[1646194884383,96.7916,104.53,104.44,14.3576]
[1646194884583,96.7916,104.53,104.44,25.8976]
[1646194885185,96.7916,104.53,104.45,0.89984678]
[1646194885485,96.7916,104.53,104.45,14.3571]
[1646194885884,45.46869235,104.52,104.46,0.80529938]
[1646194886086,45.46869235,104.52,104.45,14.3571]
[1646194886290,45.46869235,104.52,104.43,14.3602]
[1646194886486,47.59240716,104.52,104.43,14.3602]
[1646194886986,143.94240716,104.52,104.41,24.6831]
[1646194887186,143.94240716,104.52,104.42,0.45733736]
[1646194887390,164.27452452,104.52,104.41,24.6831]
[1646194887587,178.63612452,104.52,104.41,14.3631]
[1646194887791,274.12719301,104.52,104.39,72.8477]
[1646194888092,306.75679301,104.52,104.38,5.0]
[1646194888289,156.11077756,104.5,104.38,5.0]
[1646194888491,156.17939584,104.48,104.38,5.0]
[1646194888690,2.03050107,104.46,104.38,5.0]
[1646194888892,58.40301053,104.47,104.38,5.0]
[1646194889089,54.57301053,104.47,104.36,107.89]
[1646194889290,54.57301053,104.47,104.37,0.53459808]
[1646194889489,54.57301053,104.47,104.36,107.89]
[1646194889789,54.57301053,104.47,104.36,11.54]
[1646194889992,54.57301053,104.47,104.38,14.3678]
[1646194890410,152.75075112,104.47,104.38,14.3678]
[1646194890610,152.75075112,104.47,104.35,73.72844003]
[1646194890809,159.28175112,104.47,104.35,73.72844003]
[1646194891010,66.76275112,104.47,104.35,73.72844003]
[1646194891311,3.831,104.47,104.36,17.80218067]
[1646194891510,24.001,104.49,104.39,144.227]
[1646194891710,24.001,104.49,104.39,155.767]
[1646194891910,103.7231,104.51,104.4,0.71703694]
[1646194892211,157.09753458,104.51,104.41,96.35]
[1646194892411,157.09753458,104.51,104.43,14.3604]
[1646194892614,80.53403458,104.51,104.43,14.3604]
[1646194894715,23.3306,104.51,104.43,14.3604]
[1646194895414,23.3306,104.51,104.44,14.3591]
[1646194895617,49.0661,104.53,104.44,14.3591]
[1646194895815,52.8931,104.53,104.45,96.35]
[1646194896019,160.28030348,104.54,104.45,98.89904003]
[1646194896216,160.28030348,104.54,104.45,110.43904003]
[1646194896419,160.28030348,104.54,104.47,0.46526093]
[1646194896716,160.28030348,104.54,104.48,2.54904003]
[1646194897117,160.28030348,104.54,104.49,14.3529]
[1646194897521,47.691,104.57,104.49,20.4059]
[1646194897723,47.691,104.57,104.5,0.67886742]
[1646194897920,47.691,104.57,104.49,20.14204003]
[1646194898317,178.00694145,104.59,104.5,0.44218149]
[1646194898515,65.10694145,104.59,104.5,0.44218149]
[1646194898716,65.10694145,104.59,104.49,14.08904003]
[1646194898916,67.16918984,104.59,104.49,14.08904003]
[1646194899116,65.10694145,104.59,104.51,14.35]
[1646194899317,63.78489251,104.59,104.51,14.35]
[1646194899716,65.80753059,104.59,104.51,14.35]
[1646194900323,141.69081956,104.59,104.45,14.6584]
[1646194900516,160.12681956,104.59,104.4,11.54]
[1646194900718,160.12681956,104.59,104.36,110.84851857]
[1646194900719,104.71878354,104.57,104.43,5.0]
[1646194900917,48.9319837,104.55,104.41,37.2972]
[1646194901116,11.54,104.54,104.41,133.6472]
[1646194901316,84.7377837,104.55,104.41,133.6472]
[1646194901518,84.7377837,104.55,104.42,0.5861564]
[1646194901719,35.8058,104.55,104.45,96.35]
[1646194901917,24.2658,104.55,104.46,0.55730067]
[1646194902116,24.2658,104.55,104.46,115.057]
[1646194902517,24.2658,104.55,104.46,18.707]
[1646194903117,24.2658,104.55,104.48,14.3535]
[1646194903318,336.62221426,104.56,104.48,110.7035]
[1646194905118,23.7729,104.57,104.48,110.7035]
[1646194905323,23.7729,104.57,104.49,0.90948846]
[1646194905622,23.7729,104.57,104.5,14.3512]
[1646194905822,112.9,104.58,104.5,14.3512]
[1646194906026,112.9,104.58,104.5,96.35]
[1646194906223,26.4458,104.6,104.51,0.55089878]
[1646194906423,22.6198,104.6,104.51,0.55089878]
[1646194906629,22.6198,104.6,104.5,96.35]
[1646194906822,24.3736825,104.6,104.52,14.3481]
[1646194907023,43.19990463,104.59,104.48,11.54]
[1646194907225,24.3736825,104.6,104.48,11.54]
[1646194907424,22.6198,104.6,104.48,11.54]
[1646194907823,22.6198,104.6,104.48,107.89]
[1646194908024,22.6198,104.6,104.5,14.3503]
[1646194908227,57.28924692,104.59,104.5,14.3503]
[1646194908426,61.11524692,104.59,104.5,14.3503]
[1646194908626,59.35363971,104.59,104.47,63.4152]
[1646194908826,64.50168865,104.59,104.47,155.9392]
[1646194909025,63.17963971,104.59,104.47,155.9392]
[1646194909228,63.17963971,104.59,104.48,0.44056372]
[1646194909427,18.178,104.59,104.49,96.35]
[1646194909627,50.88764894,104.6,104.49,96.35]
[1646194909824,45.7396,104.6,104.5,0.46650436]
[1646194910427,45.7396,104.6,104.49,11.54]
[1646194910626,45.7396,104.6,104.49,15.366]
[1646194910929,45.7396,104.6,104.51,0.71054514]
[1646194911327,98.80774894,104.62,104.51,116.889]
[1646194911528,178.57968535,104.63,104.53,0.77825252]
[1646194911728,5.14504894,104.65,104.53,0.77825252]
[1646194911928,3.823,104.65,104.55,96.35]
[1646194912130,3.823,104.65,104.56,0.77825252]
[1646194912334,26.53474043,104.67,104.55,18.799]
[1646194912335,3.823,104.66,104.57,96.35]
[1646194912538,46.9771,104.68,104.58,0.49887037]
[1646194912736,96.5001,104.69,104.59,96.35]
[1646194912938,5.0,104.7,104.59,98.89904003]
[1646194913136,436.86934974,104.7,104.6,0.53956461]
[1646194913347,438.61806507,104.7,104.6,3.08860464]
[1646194913535,59.13773889,104.68,104.58,11.54]
[1646194913737,60.76456313,104.66,104.57,35.7764]
[1646194913935,60.76456313,104.66,104.57,24.2364]
[1646194914536,162.63807048,104.66,104.56,27.7531]
[1646194914939,66.28807048,104.66,104.56,27.7531]
[1646194915837,66.28807048,104.66,104.56,22.7531]
[1646194916140,80.63047048,104.66,104.56,14.3434]
[1646194916635,80.63047048,104.66,104.55,14.1455]
[1646194917039,138.29047048,104.66,104.52,25.83934003]
[1646194917237,58.57153709,104.64,104.52,25.8885]
[1646194917542,53.90762978,104.61,104.52,14.3485]
[1646194918437,1.8002813,104.62,104.53,0.46213234]
[1646194918841,23.4791,104.63,104.55,14.3438]
[1646194919539,54.92004764,104.62,104.55,14.3438]
[1646194919738,54.92004764,104.62,104.51,14.4686]
[1646194920340,54.92004764,104.62,104.53,14.347]
[1646194920541,70.28504764,104.62,104.51,14.4686]
[1646194921237,166.63504764,104.62,104.51,14.4686]
[1646194921442,162.81004764,104.62,104.51,14.4686]